bitfinex/quotes_SOLUSD_20230110
["timestamp","ask_amount","ask_price","bid_price","bid_amount"]
[1673336218741,20.0,15.989,15.973,42.64]
[1673336218949,20.0,15.989,15.974,20.0]
[1673336219167,1.92,15.988,15.975,42.64]
[1673336220318,1.92,15.988,15.975,55.72890666]
[1673336220512,26.65,15.99,15.975,55.72890666]
[1673336220720,20.0,15.991,15.976,20.0]
[1673336220934,20.0,15.991,15.977,42.67]
[1673336222108,20.0,15.991,15.977,55.75890666]
[1673336222295,52.5961913,15.994,15.978,0.96]
[1673336222514,52.5961913,15.994,15.979,62.66]
[1673336222515,5.6861913,15.994,15.979,62.66]
[1673336222714,5.6861913,15.994,15.98,133.498]
[1673336222928,5.6861913,15.994,15.981,62.65]
[1673336224840,18.92,15.993,15.981,42.65]
[1673336226833,18.92,15.993,15.982,20.0]
[1673336228414,18.92,15.993,15.984,20.0]
[1673336229758,18.92,15.993,15.982,62.51]
[1673336231459,18.92,15.993,15.945,255.89108586]
[1673336231460,26.65,15.99,15.977,42.52]
[1673336231670,17.96,15.989,15.977,42.52]
[1673336231986,0.96,15.988,15.976,42.52]
[1673336232174,0.96,15.988,15.975,112.557]
[1673336232384,0.96,15.987,15.976,20.0]
[1673336232595,0.96,15.986,15.976,20.0]
[1673336232808,0.96,15.985,15.976,20.0]
[1673336233020,0.96,15.984,15.976,20.0]
[1673336234294,20.0,15.989,15.976,20.0]
[1673336234705,20.0,15.989,15.976,75.80500588]
[1673336235349,20.0,15.99,15.976,75.80500588]
[1673336235780,1.92,15.989,15.976,75.80500588]
[1673336236274,20.0,15.996,15.977,1.92]
[1673336236487,20.0,15.993,15.979,20.0]
[1673336236803,20.0,15.992,15.979,20.0]
[1673336237550,1.92,15.991,15.979,20.0]
[1673336240162,21.92,15.991,15.979,20.0]
[1673336241130,20.0,15.993,15.98,1.92]
[1673336242385,0.96,15.992,15.98,1.92]
[1673336242592,5.6861913,15.994,15.98,35.01500588]
[1673336242797,5.6861913,15.994,15.982,20.0]
[1673336243001,5.6861913,15.994,15.983,157.4034]
[1673336243211,5.6861913,15.994,15.984,20.0]
[1673336246696,5.6861913,15.994,15.983,157.4034]
[1673336247326,5.6861913,15.994,15.984,20.0]
[1673336247735,5.6861913,15.994,15.983,157.4034]
[1673336248156,20.0,15.992,15.98,13.09500588]
[1673336248474,20.0,15.992,15.976,119.081]
[1673336248475,20.0,15.99,15.977,42.5]
[1673336248684,20.0,15.99,15.978,20.0]
[1673336248685,0.96,15.989,15.978,20.0]
[1673336250059,0.96,15.988,15.978,20.0]
[1673336250261,0.96,15.987,15.978,20.0]
[1673336250476,0.96,15.986,15.977,62.5]
[1673336251107,0.96,15.986,15.978,20.0]
[1673336252364,0.96,15.986,15.979,42.55]
[1673336252577,0.96,15.986,15.978,42.55]
[1673336254133,0.96,15.986,15.977,42.63]
[1673336255939,0.96,15.986,15.978,20.0]
[1673336256151,0.96,15.986,15.979,42.62]
[1673336256470,0.96,15.986,15.977,62.61]
[1673336257202,20.0,15.99,15.977,62.61]
[1673336257413,20.0,15.99,15.978,1.92]
[1673336257607,20.0,15.99,15.979,42.61]
[1673336258360,20.0,15.99,15.978,42.61]
[1673336259402,1.92,15.989,15.977,42.61]
[1673336270552,20.0,15.99,15.978,33.09500588]
[1673336270762,20.0,15.99,15.979,42.61]
[1673336271815,1.92,15.989,15.979,42.61]
[1673336273072,0.96,15.989,15.979,42.61]
[1673336275801,0.96,15.988,15.979,42.61]
[1673336276227,0.96,15.987,15.976,119.081]
[1673336276441,0.96,15.986,15.974,111.1757]
[1673336276631,1.71624704,15.985,15.974,111.1757]
[1673336276838,0.96,15.984,15.974,111.1757]
[1673336277060,0.96,15.983,15.974,111.1757]
[1673336277258,0.96,15.982,15.974,111.1757]
[1673336277473,0.96,15.981,15.974,111.1757]
[1673336278197,45.70061681,15.98,15.971,42.61]
[1673336278411,21.92,15.979,15.966,20.0]
[1673336278647,20.0,15.978,15.967,42.66]
[1673336279302,0.96,15.977,15.967,42.66]
[1673336279515,1.92,15.977,15.967,42.66]
[1673336280463,1.92,15.977,15.968,20.0]
[1673336280655,1.92,15.977,15.967,42.66]
[1673336281301,1.92,15.977,15.968,20.0]
[1673336282860,0.96,15.977,15.968,20.0]
[1673336283076,20.0,15.979,15.968,20.0]
[1673336283296,20.0,15.981,15.968,20.0]
[1673336283505,1.92,15.98,15.968,20.0]
[1673336284352,20.0,15.981,15.969,1.92]
[1673336287481,20.0,15.981,15.968,20.0]
[1673336287691,1.92,15.98,15.968,20.0]
[1673336287909,1.92,15.98,15.968,62.66]
[1673336288120,1.92,15.98,15.968,20.0]
[1673336290663,1.92,15.98,15.969,42.86]
[1673336297780,21.92,15.98,15.967,42.85]
[1673336297994,20.0,15.979,15.967,20.0]
[1673336298224,1.92,15.978,15.967,20.0]
[1673336302425,1.92,15.978,15.966,62.85]
[1673336302643,1.92,15.978,15.966,42.85]
[1673336303595,1.92,15.978,15.967,20.0]
[1673336303778,1.92,15.978,15.966,42.85]
[1673336305899,57.92061681,15.978,15.966,42.85]
[1673336306107,57.92061681,15.978,15.965,115.1115]
[1673336306427,20.0,15.977,15.965,115.1115]
[1673336306614,1.92,15.976,15.965,115.1115]
[1673336306825,1.92,15.976,15.966,42.87]
[1673336311242,20.0,15.974,15.957,42.92]
[1673336311459,17.96,15.973,15.955,42.93]
[1673336311675,20.0,15.971,15.955,42.93]
[1673336311883,20.0,15.969,15.955,42.93]
[1673336312190,0.96,15.968,15.955,42.93]
[1673336312407,0.96,15.967,15.955,42.93]
[1673336312815,0.96,15.966,15.955,42.93]
[1673336314961,0.96,15.966,15.956,20.0]
[1673336315465,0.96,15.967,15.956,20.0]
[1673336315998,0.96,15.968,15.956,20.0]
[1673336316200,0.96,15.967,15.956,20.0]
[1673336319268,0.96,15.967,15.958,20.0]
[1673336320558,20.0,15.969,15.958,20.0]
[1673336320838,153.8,15.98,15.959,45.03]
[1673336320839,20.0,15.973,15.959,45.03]
[1673336321265,20.0,15.973,15.96,20.0]
[1673336321470,20.0,15.973,15.961,43.1]
[1673336321881,1.92,15.972,15.961,43.1]
[1673336322728,20.0,15.978,15.961,43.1]
[1673336322948,20.0,15.979,15.962,21.92]
[1673336323144,20.0,15.979,15.963,43.02]
[1673336323354,20.0,15.979,15.964,1.92]
[1673336323686,20.0,15.979,15.965,43.01]
[1673336323875,20.0,15.979,15.966,17.0]
[1673336324085,20.0,15.979,15.967,43.01]
[1673336324627,20.0,15.979,15.965,43.01]
[1673336324849,18.92,15.978,15.965,43.01]
[1673336325037,20.0,15.977,15.961,43.02]
[1673336325246,18.92,15.976,15.961,43.02]
[1673336325559,20.0,15.975,15.961,43.02]
[1673336325771,20.0,15.973,15.961,43.02]
[1673336325981,0.96,15.972,15.961,43.02]
[1673336326191,1.92,15.972,15.961,43.02]
[1673336326413,0.96,15.971,15.961,43.02]
[1673336326615,20.0,15.975,15.961,43.02]
[1673336326830,20.0,15.975,15.962,20.0]
[1673336327266,20.0,15.975,15.963,43.0]
[1673336327999,1.92,15.974,15.962,116.2518]
[1673336328197,1.92,15.974,15.963,43.0]
[1673336329363,133.65,15.97,15.941,187.9]
[1673336329680,20.0,15.968,15.954,116.2518]
[1673336329873,1.92,15.967,15.954,116.2518]
[1673336332498,26.48,15.96,15.954,116.2518]
[1673336333337,48.91,15.967,15.955,20.0]
[1673336333668,1.92,15.967,15.954,116.2518]
[1673336334088,20.0,15.966,15.954,116.2518]
[1673336334279,1.92,15.965,15.954,116.2518]
[1673336334702,26.73,15.96,15.954,116.2518]
[1673336340630,26.73,15.96,15.949,43.23]
[1673336340631,20.0,15.959,15.949,43.23]
[1673336340841,39.00061681,15.959,15.948,20.0]
[1673336341160,39.00061681,15.959,15.95,20.0]
[1673336342533,136.5163,15.968,15.951,60.25]
[1673336342718,136.5163,15.968,15.952,1.92]
[1673336343078,20.0,15.966,15.953,43.25]
[1673336343259,20.0,15.966,15.951,43.26]
[1673336343580,19.00061681,15.965,15.951,43.26]
[1673336343772,20.96,15.964,15.951,43.26]
[1673336343988,21.92,15.964,15.952,112.2091]
[1673336344313,40.92061681,15.964,15.952,112.2091]
[1673336345869,40.92061681,15.964,15.953,20.0]
[1673336347377,40.92061681,15.964,15.952,112.2091]
[1673336349893,19.00061681,15.964,15.952,112.2091]
[1673336350119,116.5163,15.968,15.953,65.17]
[1673336350302,19.00061681,15.967,15.955,20.0]
[1673336351480,1.92,15.966,15.955,20.0]
[1673336353150,40.92061681,15.966,15.954,114.4037]
[1673336353890,20.92061681,15.966,15.954,114.4037]
[1673336354081,26.9,15.98,15.96,26.52]
[1673336354298,20.0,15.979,15.962,20.0]
[1673336354496,20.0,15.979,15.964,20.0]
[1673336354712,20.0,15.979,15.965,43.16]
[1673336355464,20.0,15.979,15.963,34.48]
[1673336355674,18.92,15.978,15.963,34.48]
[1673336356084,17.96,15.978,15.963,34.48]
[1673336356412,20.0,15.979,15.964,35.82530278]
[1673336356731,20.0,15.979,15.965,34.48]
[1673336357464,1.92,15.978,15.965,34.48]
[1673336359587,1.92,15.978,15.966,112.9203]
[1673336360315,1.92,15.978,15.967,34.48]
[1673336361584,0.96,15.978,15.967,34.48]
[1673336361800,1.92,15.979,15.967,34.48]
[1673336362013,21.92,15.979,15.967,34.48]
[1673336362740,20.0,15.979,15.967,34.48]
[1673336362938,20.0,15.979,15.968,20.0]
[1673336363149,20.0,15.979,15.969,17.0]
[1673336363901,20.0,15.979,15.967,34.48]
[1673336364101,0.96,15.978,15.967,34.48]
[1673336370102,20.0,15.979,15.967,34.48]
[1673336370296,20.0,15.981,15.968,20.0]
[1673336370509,20.0,15.981,15.969,34.4]
[1673336371451,132.65081681,15.984,15.97,17.0]
[1673336371766,113.6502,15.984,15.972,20.0]
[1673336372626,113.6502,15.984,15.973,17.0]
[1673336372827,1.92,15.983,15.973,17.0]
[1673336374935,0.96,15.983,15.973,17.0]
[1673336375137,20.0,15.991,15.974,34.35]
[1673336375347,20.0,15.991,15.975,21.92]
[1673336375669,20.0,15.991,15.977,20.0]
[1673336375881,66.92,15.991,15.978,17.0]
[1673336377230,20.0,15.989,15.976,108.5837]
[1673336377563,20.0,15.989,15.977,20.0]
[1673336377760,1.92,15.988,15.977,20.0]
[1673336379970,26.95,15.99,15.977,20.0]
[1673336380187,66.91,15.993,15.978,1.92]
[1673336380396,20.0,15.991,15.978,1.92]
[1673336380808,20.0,15.991,15.978,15.82530278]
[1673336381028,20.0,15.992,15.979,54.25]
[1673336381233,20.0,15.993,15.98,1.92]
[1673336381860,20.0,15.992,15.979,34.25]
[1673336382079,85.91061681,15.992,15.976,108.5837]
[1673336382292,20.96,15.991,15.976,108.5837]
[1673336382609,20.0,15.99,15.976,108.5837]
[1673336382808,1.92,15.989,15.976,108.5837]
[1673336384168,1.92,15.989,15.977,20.0]
[1673336386281,1.92,15.989,15.976,108.5837]
[1673336386491,1.92,15.989,15.977,20.0]
[1673336388719,1.92,15.989,15.978,17.0]
[1673336389032,1.92,15.989,15.977,17.0]
[1673336389244,20.0,15.988,15.974,34.24]
[1673336389431,1.92,15.987,15.972,142.7327]
[1673336389641,20.0,15.986,15.972,142.7327]
[1673336389962,1.92,15.987,15.972,142.7327]
[1673336390172,1.92,15.987,15.973,20.0]
[1673336390818,1.92,15.987,15.974,53.16]
[1673336391041,1.92,15.987,15.975,20.0]
[1673336391342,1.92,15.987,15.976,17.0]
[1673336391952,1.92,15.987,15.976,133.7876]
[1673336394476,1.92,15.987,15.977,20.0]
[1673336394686,1.92,15.987,15.976,116.7876]
[1673336394902,1.92,15.987,15.977,37.0]
[1673336396500,1.92,15.987,15.977,17.0]
[1673336398812,1.92,15.987,15.977,37.0]
[1673336399542,1.92,15.987,15.977,17.0]
[1673336399858,93.66,15.99,15.977,37.0]
[1673336400059,46.74,15.99,15.977,37.0]
[1673336400481,26.74,15.99,15.978,20.0]
[1673336400810,20.0,15.991,15.979,0.96]
[1673336401002,20.0,15.991,15.98,0.96]
[1673336401211,20.0,15.991,15.978,20.0]
[1673336401417,52.5961913,15.994,15.98,20.0]
[1673336401630,5.6861913,15.994,15.981,54.21]
[1673336401959,5.6861913,15.994,15.982,20.0]
[1673336402482,5.6861913,15.994,15.981,20.0]
[1673336402892,1.92,15.993,15.981,20.0]
[1673336403864,5.6861913,15.994,15.981,20.0]
[1673336404044,5.6861913,15.994,15.982,20.0]
[1673336404886,5.6861913,15.994,15.981,40.0]
[1673336405095,1.92,15.993,15.981,40.0]
[1673336405734,5.6861913,15.994,15.981,40.0]
[1673336405942,5.6861913,15.994,15.982,21.92]
[1673336406163,5.6861913,15.994,15.982,56.02]
[1673336406562,5.6861913,15.994,15.982,54.1]
[1673336407208,1.92,15.993,15.982,54.1]
[1673336407410,1.92,15.993,15.983,17.0]
[1673336408388,1.92,15.993,15.982,20.0]
[1673336409644,5.6861913,15.994,15.982,20.0]
[1673336409861,5.6861913,15.994,15.983,1.92]
[1673336410044,5.6861913,15.994,15.985,20.0]
[1673336415636,0.96,15.993,15.985,20.0]
[1673336416561,5.6861913,15.994,15.985,20.0]
[1673336419511,5.6861913,15.994,15.986,17.0]
[1673336419722,5.6861913,15.994,15.987,20.0]
[1673336419929,5.6861913,15.994,15.988,17.0]
[1673336435914,5.6861913,15.994,15.985,54.04]
[1673336436125,5.6861913,15.994,15.985,20.0]
[1673336437090,5.6861913,15.994,15.985,54.05]
[1673336437298,5.6861913,15.994,15.985,20.0]
[1673336437490,5.6861913,15.994,15.987,20.0]
[1673336437911,5.6861913,15.994,15.988,17.0]
[1673336442670,5.6861913,15.994,15.985,54.03]
[1673336442877,5.6861913,15.994,15.986,17.0]
[1673336445089,5.6861913,15.994,15.987,20.0]
[1673336445279,5.6861913,15.994,15.987,53.98]
[1673336445491,5.6861913,15.994,15.988,17.0]
[1673336450640,5.6861913,15.994,15.987,17.0]
[1673336451584,5.6861913,15.994,15.986,17.0]
[1673336451799,5.6861913,15.994,15.986,37.0]
[1673336452764,5.6861913,15.994,15.987,20.0]
[1673336453077,5.6861913,15.994,15.988,17.0]
[1673336454639,5.6861913,15.994,15.987,17.0]
[1673336455289,5.6861913,15.994,15.988,21.92]
[1673336455503,5.6861913,15.994,15.989,17.0]
[1673336458338,5.6861913,15.994,15.988,18.92]
[1673336461171,5.6861913,15.994,15.989,20.0]
[1673336461370,2.4706913,15.994,15.99,18.92]
[1673336461904,20.0,16.003,15.99,18.92]
[1673336461905,20.0,16.007,15.992,20.0]
[1673336462096,20.0,16.005,15.994,20.0]
[1673336462304,20.0,16.005,15.995,1.92]
[1673336462635,20.0,16.005,15.995,18.92]
[1673336466226,20.0,16.007,15.995,18.92]
[1673336466537,20.0,16.008,15.996,20.0]
[1673336466761,20.0,16.008,15.997,18.92]
[1673336466939,20.0,16.009,15.997,18.92]
[1673336467149,46.85,16.015,15.998,46.9]
[1673336467382,46.84,16.016,16.0,20.0]
[1673336467589,20.0,16.017,16.002,20.0]
[1673336467802,20.0,16.017,16.003,48.8]
[1673336468003,19.00061681,16.017,16.003,65.8]
[1673336468328,46.84,16.019,16.004,20.0]
[1673336468642,20.0,16.019,16.005,18.92]
[1673336468833,20.0,16.017,16.005,18.92]
[1673336469044,20.0,16.017,16.005,17.96]
[1673336469470,20.0,16.017,16.005,17.0]
[1673336469683,0.96,16.016,16.005,17.0]
[1673336471572,20.0,16.017,16.005,17.0]
[1673336471788,20.0,16.017,16.006,1.92]
[1673336473170,25.6861913,16.018,16.006,1.92]
[1673336474529,25.6861913,16.018,16.004,46.88]
[1673336474742,0.96,16.017,16.003,46.88]
[1673336475061,0.96,16.017,16.002,177.7137]
[1673336475472,0.96,16.016,16.002,130.8237]
[1673336476727,20.96,16.016,16.004,20.0]
[1673336476945,0.96,16.015,16.003,46.88]
[1673336477153,0.96,16.015,16.002,177.7137]
[1673336477469,0.96,16.015,16.002,157.7137]
[1673336477470,19.96061681,16.015,16.002,157.7137]
[1673336477678,0.96,16.014,16.002,110.8237]
[1673336477899,20.0,16.009,15.995,46.91]
[1673336478096,66.87,16.009,15.994,46.91]
[1673336478426,20.0,16.007,15.994,20.0]
[1673336478643,1.92,16.006,15.994,20.0]
[1673336479149,1.92,16.006,15.995,17.0]
[1673336479570,20.92061681,16.006,15.993,114.2532]
[1673336479779,20.0,16.005,15.993,114.2532]
[1673336480003,1.92,16.004,15.993,114.2532]
[1673336480822,1.92,16.004,15.99,46.92]
[1673336481029,67.80061681,16.004,15.991,20.0]
[1673336481242,67.80061681,16.004,15.99,20.0]
[1673336481453,67.80061681,16.004,15.991,20.0]
[1673336482525,46.87,16.006,15.993,20.0]
[1673336482842,26.59,16.01,15.994,133.1362]
[1673336482843,46.87,16.008,15.994,133.1362]
[1673336483036,46.87,16.009,15.995,20.0]
[1673336483240,26.59,16.01,15.996,17.0]
[1673336483452,26.59,16.01,15.997,20.0]
[1673336483682,73.45,16.01,15.998,17.0]
[1673336484296,1.92,16.009,15.998,17.0]
[1673336485241,20.92061681,16.009,15.998,17.0]
[1673336488325,20.0,16.008,15.998,17.0]
[1673336488633,19.96061681,16.007,15.998,17.0]
[1673336492198,19.00061681,16.007,15.998,17.0]
[1673336493879,46.87,16.009,15.998,17.0]
[1673336494098,19.00061681,16.011,15.999,1.92]
[1673336494289,20.0,16.01,15.999,21.92]
[1673336494615,46.85,16.013,15.999,21.92]
[1673336494616,46.85,16.013,16.0,20.0]
[1673336494821,46.85,16.015,16.002,20.0]
[1673336495247,46.85,16.015,16.003,17.0]
[1673336495459,46.85,16.015,16.004,20.0]
[1673336495672,46.85,16.015,16.005,17.0]
[1673336496178,1.92,16.014,16.005,17.0]
[1673336496723,46.85,16.015,16.005,17.0]
[1673336497030,65.84061681,16.016,16.005,17.0]
[1673336498186,21.92,16.015,16.005,17.0]
[1673336499237,1.92,16.015,16.005,17.0]
[1673336499433,1.92,16.015,16.002,20.0]
[1673336499643,20.92061681,16.015,16.002,20.0]
[1673336499848,20.0,16.014,16.002,20.0]
[1673336500068,1.92,16.013,16.002,20.0]
[1673336500937,20.0,16.014,16.003,17.0]
[1673336501129,0.96,16.013,16.003,17.0]
[1673336501342,20.0,16.014,16.003,17.0]
[1673336502271,39.00061681,16.015,16.003,17.0]
[1673336502475,0.96,16.014,16.003,17.0]
[1673336506580,0.96,16.014,16.004,40.54]
[1673336506790,0.96,16.014,16.005,17.0]
[1673336507420,0.96,16.014,16.004,17.0]
[1673336507734,0.96,16.014,16.004,37.0]
[1673336509343,0.96,16.014,16.004,17.0]
[1673336511656,20.0,16.017,16.004,17.0]
[1673336511852,1.92,16.016,16.004,17.0]
[1673336513214,1.92,16.016,16.003,17.0]
[1673336513428,1.92,16.016,16.004,33.59]
[1673336513638,1.92,16.016,16.005,17.0]
[1673336513881,1.92,16.016,16.003,37.0]
[1673336514068,1.92,16.016,16.004,33.59]
[1673336514280,0.96,16.016,16.005,17.0]
[1673336517966,0.96,16.016,16.004,33.59]
[1673336518156,1.92,16.016,16.003,33.57]
[1673336519336,1.92,16.016,16.004,17.0]
[1673336519646,20.0,16.017,16.005,33.56]
[1673336519863,20.0,16.017,16.006,18.92]
[1673336520052,20.0,16.017,16.006,17.96]
[1673336520256,20.0,16.017,16.005,20.0]
[1673336520595,20.0,16.017,16.006,50.53]
[1673336521643,20.0,16.017,16.006,17.0]
[1673336521857,20.0,16.017,16.005,17.0]
[1673336522053,20.0,16.017,16.006,33.53]
[1673336522254,20.0,16.017,16.007,17.0]
[1673336522905,0.96,16.016,16.007,17.0]
[1673336524593,5.6861913,16.018,16.007,17.0]
[1673336524804,5.6861913,16.018,16.008,33.54]
[1673336525000,5.6861913,16.018,16.009,17.0]
[1673336527827,0.96,16.017,16.009,17.0]
[1673336531842,5.6861913,16.018,16.009,17.0]
[1673336544336,1.92,16.017,16.006,33.52]
[1673336544553,1.92,16.017,16.004,33.53]
[1673336545188,1.92,16.017,16.005,20.0]
[1673336545378,1.92,16.017,16.006,33.52]
[1673336545585,1.92,16.017,16.004,33.53]
[1673336546029,1.92,16.017,16.005,20.0]
[1673336546248,1.92,16.017,16.006,33.52]
[1673336546874,1.92,16.017,16.007,17.0]
[1673336548771,1.92,16.017,16.008,33.53]
[1673336548965,1.92,16.017,16.009,17.0]
[1673336549163,1.92,16.017,16.007,17.0]
[1673336550136,1.92,16.017,16.008,33.53]
[1673336550339,1.92,16.017,16.009,17.0]
[1673336552238,1.92,16.017,16.006,33.52]
[1673336552555,1.92,16.017,16.007,17.0]
[1673336553265,20.92061681,16.017,16.003,33.53]
[1673336553596,20.0,16.016,16.003,33.53]
[1673336553792,1.92,16.015,16.003,33.53]
[1673336554225,20.92061681,16.015,16.003,33.53]
[1673336554536,20.0,16.014,16.003,33.53]
[1673336554757,1.92,16.013,16.003,33.53]
[1673336561077,39.00061681,16.016,16.004,17.0]
[1673336561078,20.0,16.016,16.004,17.0]
[1673336561299,20.0,16.016,16.005,33.59]
[1673336561485,20.0,16.016,16.006,17.0]
[1673336562243,0.96,16.015,16.005,17.0]
[1673336562446,0.96,16.014,16.005,17.0]
[1673336565606,0.96,16.014,16.004,17.0]
[1673336565801,0.96,16.014,16.005,33.56]
[1673336566008,0.96,16.014,16.006,17.0]
[1673336566220,0.96,16.013,16.005,33.56]
[1673336566424,0.96,16.012,16.005,33.56]
[1673336567808,0.96,16.012,16.004,17.0]
[1673336568126,0.96,16.012,16.003,33.57]
[1673336568314,19.00061681,16.013,16.003,33.57]
[1673336568548,20.0,16.016,16.003,33.57]
[1673336568735,20.92061681,16.015,16.003,33.57]
[1673336568962,20.0,16.014,16.003,33.57]
[1673336569282,1.92,16.013,16.003,33.57]
[1673336569484,1.92,16.013,16.004,17.0]
[1673336580738,1.92,16.013,16.004,37.0]
[1673336580929,0.96,16.013,16.005,33.59]
[1673336581139,0.96,16.013,16.006,17.0]
[1673336582607,0.96,16.013,16.005,17.0]
[1673336583131,0.96,16.013,16.004,17.0]
[1673336583342,0.96,16.013,16.005,33.56]
[1673336583596,20.0,16.016,16.005,33.56]
[1673336583806,20.0,16.016,16.006,17.0]
[1673336584207,20.0,16.017,16.007,33.56]
[1673336584416,20.0,16.017,16.008,17.0]
[1673336585586,1.92,16.016,16.007,17.0]
[1673336587989,1.92,16.016,16.003,33.57]
[1673336588198,18.92,16.016,16.003,33.57]
[1673336588534,39.00061681,16.015,16.003,33.57]
[1673336588747,1.92,16.014,16.003,33.57]
[1673336588943,20.92061681,16.014,16.003,33.57]
[1673336589156,19.00061681,16.013,16.003,33.57]
[1673336589479,26.74,16.01,15.991,20.0]
[1673336589797,19.85225953,16.009,15.995,117.9684]
[1673336590004,46.87,16.008,15.995,117.9684]
[1673336590214,1.92,16.007,15.995,117.9684]
[1673336590531,40.92061681,16.007,15.995,117.9684]
[1673336590744,19.00061681,16.006,15.995,117.9684]
[1673336590958,1.92,16.005,15.995,117.9684]
[1673336591482,20.92061681,16.005,15.995,117.9684]
[1673336591880,20.92061681,16.005,15.996,17.0]
[1673336593453,47.81283272,16.004,15.986,33.85]
[1673336593676,84.81283272,16.004,15.986,151.8352]
[1673336593877,1.98604595,16.002,15.986,151.8352]
[1673336594225,19.00061681,16.001,15.986,151.8352]
[1673336594401,22.94604595,16.0,15.987,20.0]
[1673336594616,22.94604595,16.0,15.988,33.84]
[1673336594946,19.96061681,15.999,15.989,17.0]
[1673336595165,2.94604595,15.998,15.989,17.0]
[1673336595566,2.94604595,15.998,15.988,17.0]
[1673336595769,2.94604595,15.998,15.989,33.95]
[1673336595999,2.94604595,15.998,15.99,17.0]
[1673336596207,1.98604595,15.998,15.99,17.0]
[1673336596404,1.98604595,15.999,15.99,17.0]
[1673336596740,1.98604595,15.999,15.989,17.0]
[1673336601989,1.98604595,15.999,15.99,33.94]
[1673336602182,1.98604595,16.004,15.992,20.0]
[1673336602395,2.94604595,16.004,15.993,50.93]
[1673336602725,0.96,16.004,15.993,50.93]
[1673336602935,39.00061681,16.005,15.994,20.0]
[1673336603123,39.00061681,16.005,15.995,17.0]
[1673336603778,39.00061681,16.005,15.994,17.0]
[1673336603983,39.00061681,16.005,15.994,37.0]
[1673336604182,1.92,16.004,15.994,37.0]
[1673336605862,1.92,16.004,15.994,17.0]
[1673336606497,26.67,16.0,15.988,33.85]
[1673336606711,21.63384379,15.999,15.986,117.9066]
[1673336606924,87.81061681,15.999,15.986,117.9066]
[1673336607127,19.00061681,15.998,15.986,117.9066]
[1673336607338,1.92,15.997,15.986,117.9066]
[1673336607752,20.92061681,15.997,15.986,117.9066]
[1673336608694,20.0,15.996,15.986,117.9066]